bitfinex/quotes_SOLUSD_20220116
["timestamp","ask_amount","ask_price","bid_price","bid_amount"]
[1642376894295,10.03,147.83,147.72,24.9853]
[1642376894497,0.25,147.83,147.72,24.86091273]
[1642376894696,0.25,147.83,147.72,25.11091273]
[1642376894896,35.28058855,147.85,147.72,25.11091273]
[1642376895097,0.25,147.85,147.72,25.11091273]
[1642376895395,11.62777007,147.86,147.72,51.04161273]
[1642376895596,1.84777007,147.86,147.72,51.04161273]
[1642376896300,1.84777007,147.86,147.73,67.6]
[1642376896497,1.84777007,147.86,147.75,10.1488]
[1642376896698,11.99697007,147.87,147.76,35.14906596]
[1642376896899,11.99697007,147.87,147.77,22.6013]
[1642376897400,11.99697007,147.87,147.77,22.8513]
[1642376897999,10.1492,147.87,147.77,22.8513]
[1642376899902,10.3992,147.87,147.77,22.8513]
[1642376900502,12.24697007,147.87,147.77,22.8513]
[1642376901299,10.1492,147.87,147.77,22.8513]
[1642376910309,10.1492,147.87,147.77,90.4513]
[1642376910708,1.84777007,147.88,147.77,90.4513]
[1642376910909,1.84777007,147.88,147.77,96.4513]
[1642376912419,1.84777007,147.88,147.77,38.9985]
[1642376912617,1.84777007,147.88,147.77,106.5985]
[1642376915059,1.84777007,147.89,147.77,106.5985]
[1642376915755,1.84777007,147.89,147.77,32.9985]
[1642376917562,11.99567007,147.89,147.77,32.9985]
[1642376918861,1.84777007,147.89,147.77,106.5985]
[1642376919061,1.84777007,147.89,147.78,9.78]
[1642376919260,1.84777007,147.89,147.79,77.7458]
[1642376919460,1.84777007,147.89,147.79,83.9958]
[1642376920262,1.84777007,147.89,147.8,9.78]
[1642376920461,3.83811407,147.92,147.84,10.1426]
[1642376920664,3.83811407,147.92,147.85,23.1244]
[1642376920862,3.83811407,147.92,147.85,96.9744]
[1642376921064,3.83811407,147.93,147.85,29.3744]
[1642376921261,3.83811407,147.93,147.86,46.73696558]
[1642376921463,3.83811407,147.93,147.86,46.98696558]
[1642376922364,13.98071407,147.97,147.86,46.98696558]
[1642376922966,13.98071407,147.97,147.86,52.98696558]
[1642376923165,37.84551407,147.97,147.87,24.0281]
[1642376923366,37.84551407,147.97,147.87,24.2781]
[1642376923667,34.0074,147.97,147.87,24.2781]
[1642376923864,34.2574,147.97,147.87,24.2781]
[1642376930068,34.2574,147.97,147.82,9.78]
[1642376930284,45.73817588,147.97,147.82,23.7886]
[1642376930476,52.53253729,147.97,147.82,0.25]
[1642376930669,52.53253729,147.97,147.79,9.78]
[1642376930868,52.53253729,147.97,147.79,15.78]
[1642376931071,52.53253729,147.97,147.8,35.20561138]
[1642376931269,7.67567745,147.96,147.81,23.0353]
[1642376931470,10.1477,147.92,147.81,23.0353]
[1642376931669,39.65913614,147.91,147.81,23.0353]
[1642376931872,39.90913614,147.91,147.81,23.2853]
[1642376932269,39.90913614,147.91,147.77,9.78]
[1642376932471,51.38991202,147.91,147.78,23.7214]
[1642376932973,118.98991202,147.91,147.79,42.0711469]
[1642376933469,10.1479,147.89,147.79,42.0711469]
[1642376933670,37.07251889,147.88,147.79,42.3211469]
[1642376935470,47.22151889,147.88,147.79,42.3211469]
[1642376935674,47.22151889,147.88,147.8,24.141]
[1642376935871,47.22151889,147.88,147.8,24.391]
[1642376941178,47.22151889,147.88,147.8,30.391]
[1642376942880,10.149,147.88,147.8,30.391]
[1642376946508,10.149,147.88,147.8,24.391]
[1642376948619,19.929,147.88,147.75,24.8665]
[1642376949113,21.62977588,147.88,147.75,24.8665]
[1642376949314,19.929,147.88,147.76,24.2497]
[1642376949517,19.929,147.88,147.76,62.60821044]
[1642376949916,19.929,147.88,147.76,62.85821044]
[1642376950115,21.62977588,147.88,147.76,0.25]
[1642376950315,1.09379336,147.86,147.73,22.5147]
[1642376950516,10.1525,147.83,147.73,22.5147]
[1642376950718,17.4945,147.83,147.73,28.5147]
[1642376951120,35.23680565,147.82,147.73,75.89165396]
[1642376952820,35.23680565,147.82,147.73,76.14165396]
[1642376956327,35.23680565,147.82,147.73,70.14165396]
[1642376957627,35.23680565,147.82,147.73,76.14165396]
[1642376959728,35.23680565,147.82,147.73,70.14165396]
[1642376963532,10.1511,147.85,147.73,70.14165396]
[1642376963737,19.9311,147.85,147.73,70.14165396]
[1642376964640,47.54831316,147.84,147.73,70.14165396]
[1642376966766,19.9311,147.85,147.73,70.14165396]
[1642376967074,9.78,147.85,147.73,80.29175396]
[1642376967265,9.78,147.85,147.74,67.6]
[1642376967465,1.09379336,147.86,147.74,73.85]
[1642376967665,1.09379336,147.86,147.75,24.0681]
[1642376967867,38.55422269,147.86,147.76,46.44856574]
[1642376968368,1.09379336,147.86,147.77,23.807]
[1642376968767,1.09379336,147.86,147.77,24.057]
[1642376971767,11.24369336,147.86,147.77,24.057]
[1642376974873,12.94446924,147.86,147.77,24.057]
[1642376975272,12.94446924,147.86,147.7,13.59211819]
[1642376975273,9.78,147.85,147.7,13.59211819]
[1642376975471,10.153,147.82,147.71,23.7367]
[1642376975672,10.153,147.82,147.72,48.69507366]
[1642376975873,48.44065942,147.81,147.72,54.69507366]
[1642376976273,48.44065942,147.81,147.73,23.2353]
[1642376977774,48.44065942,147.81,147.73,23.4853]
[1642376978572,58.59385942,147.81,147.73,23.4853]
[1642376979274,58.59385942,147.81,147.73,23.2353]
[1642376980383,58.59385942,147.81,147.73,70.0307708]
[1642376980778,58.59385942,147.81,147.73,70.2807708]
[1642376981880,58.84385942,147.81,147.73,70.2807708]
[1642376983381,58.84385942,147.81,147.73,23.2353]
[1642376983582,58.84385942,147.81,147.69,23.3148]
[1642376983880,79.08077588,147.8,147.7,23.5269]
[1642376984079,10.1585,147.77,147.7,23.5269]
[1642376984282,10.1585,147.77,147.66,45.64986247]
[1642376984283,28.29099561,147.76,147.66,45.64986247]
[1642376984681,28.29099561,147.76,147.67,23.9478]
[1642376985384,10.1588,147.73,147.67,23.9478]
[1642376985583,18.3538,147.73,147.67,23.9478]
[1642376986085,18.3538,147.73,147.59,71.41211819]
[1642376986283,18.3538,147.73,147.63,24.8954]
[1642376986484,59.13043242,147.73,147.64,36.12126848]
[1642376986685,50.93543242,147.73,147.65,23.8963]
[1642376987086,10.1588,147.73,147.65,23.8963]
[1642376987484,10.1588,147.73,147.65,29.8963]
[1642376988385,10.1588,147.73,147.65,30.1463]
[1642376989990,10.1574,147.75,147.65,30.1463]
[1642376990888,49.8641794,147.75,147.65,30.1463]
[1642376993994,10.1574,147.75,147.65,30.1463]
[1642376995893,10.4074,147.75,147.65,30.1463]
[1642376998798,9.78,147.79,147.65,97.7463]
[1642376999027,27.13430434,147.8,147.66,9.78]
[1642376999197,23.6011,147.8,147.66,9.78]
[1642376999398,9.78,147.83,147.67,67.6]
[1642376999598,7.37109474,147.84,147.68,9.78]
[1642376999899,38.94082321,147.83,147.69,37.01462638]
[1642377000099,38.94082321,147.83,147.69,46.79462638]
[1642377000296,38.94082321,147.83,147.69,53.04462638]
[1642377000498,38.94082321,147.83,147.7,23.6116]
[1642377000698,49.09282321,147.83,147.7,23.6116]
[1642377000898,49.09282321,147.83,147.7,23.8616]
[1642377001199,58.87282321,147.83,147.7,23.8616]
[1642377002500,59.12282321,147.83,147.7,23.8616]
[1642377004699,62.65462603,147.83,147.7,23.8616]
[1642377005315,62.65462603,147.83,147.7,23.6116]
[1642377005808,59.12282321,147.83,147.7,23.6116]
[1642377006638,19.932,147.83,147.7,23.8616]
[1642377006839,10.152,147.83,147.7,29.8616]
[1642377007043,13.98891407,147.85,147.7,29.8616]
[1642377007240,13.98891407,147.85,147.71,9.78]
[1642377007541,13.98891407,147.85,147.71,16.03]
[1642377007745,42.58130559,147.84,147.72,37.74394145]
[1642377007944,42.58130559,147.84,147.73,22.8688]
[1642377008342,42.58130559,147.84,147.73,23.1188]
[1642377009443,10.1521,147.83,147.73,23.1188]
[1642377010345,10.4021,147.83,147.73,23.1188]
[1642377017655,34.1429,147.85,147.73,23.1188]
[1642377017855,43.9229,147.85,147.73,29.1188]
[1642377018053,93.2671307,147.85,147.73,29.1188]
[1642377018955,93.2671307,147.85,147.73,96.7188]
[1642377019153,43.9229,147.85,147.73,96.7188]
[1642377019553,33.7721,147.85,147.73,96.7188]
[1642377019957,34.0221,147.85,147.73,106.8688]
[1642377020658,10.03,147.85,147.73,115.4948]
[1642377020859,1.09379336,147.86,147.74,9.78]
[1642377021056,1.09379336,147.86,147.77,67.6]
[1642377021257,1.09379336,147.86,147.77,74.265]
[1642377021456,1.09379336,147.86,147.77,90.295]
[1642377021757,1.09379336,147.86,147.78,49.15906686]
[1642377021958,1.09379336,147.86,147.79,23.6693]
[1642377022460,1.09379336,147.86,147.79,29.9193]
[1642377022655,1.09379336,147.86,147.79,6.25]
[1642377022856,1.09379336,147.86,147.75,15.78]
[1642377023057,1.34379336,147.86,147.75,15.78]
[1642377023257,1.09379336,147.86,147.75,15.78]
[1642377023761,1.34379336,147.86,147.76,40.409659]
[1642377024070,1.34379336,147.86,147.76,44.659659]
[1642377024257,11.49399336,147.86,147.77,23.5927]
[1642377024457,1.09379336,147.86,147.77,23.8427]
[1642377024660,1.09379336,147.86,147.77,97.4427]
[1642377026387,1.09379336,147.86,147.77,29.8427]
[1642377026589,35.85692021,147.86,147.77,29.8427]
[1642377027188,1.09379336,147.86,147.77,29.8427]
[1642377027888,1.09379336,147.86,147.78,67.6]
[1642377028087,1.09379336,147.86,147.79,39.74131245]
[1642377028290,1.09379336,147.86,147.8,67.6]
[1642377028490,13.61811407,147.9,147.8,67.6]
[1642377028691,3.83811407,147.89,147.82,35.43323163]
[1642377028890,3.83811407,147.89,147.82,35.68323163]
[1642377029892,9.78,147.9,147.83,23.971]
[1642377030292,9.78,147.9,147.83,24.221]
[1642377031790,55.27179093,147.9,147.83,24.221]
[1642377034496,65.41959093,147.9,147.83,24.221]
[1642377037396,55.27179093,147.9,147.83,24.221]
[1642377038400,55.27179093,147.9,147.83,23.971]
[1642377038600,9.78,147.9,147.83,23.971]
[1642377039804,48.44718731,147.9,147.83,24.221]
[1642377041205,1.91250983,147.89,147.83,24.221]
[1642377042610,1.91250983,147.89,147.83,23.971]
[1642377043709,1.91250983,147.88,147.8,36.75175559]
[1642377043910,38.00348405,147.87,147.8,36.75175559]
[1642377044110,38.00348405,147.87,147.8,37.00175559]
[1642377044710,38.00348405,147.87,147.8,36.75175559]
[1642377044911,38.00348405,147.87,147.78,24.9641]
[1642377045118,39.91599388,147.87,147.78,24.9641]
[1642377045911,1.91250983,147.86,147.78,24.9641]
[1642377046112,108.06270198,147.98,147.82,67.6]
[1642377046311,33.89,147.98,147.85,0.31466253]
[1642377046510,33.89,147.98,147.86,10.78688214]
[1642377046712,8.22072702,148.0,147.87,67.6]
[1642377046917,23.9127,148.04,147.89,67.6]
[1642377047112,18.00072702,148.07,147.91,48.46393341]
[1642377047313,18.00072702,148.07,147.92,23.446]
[1642377047314,10.1381,148.06,147.92,23.446]
[1642377047513,10.1381,148.06,147.93,9.78]
[1642377047916,10.1381,148.06,147.93,16.03]
[1642377048115,42.62255716,148.05,147.94,43.11198351]
[1642377048517,42.62255716,148.05,147.94,43.36198351]
[1642377048717,46.45921584,148.05,147.94,43.36198351]
[1642377049523,42.62255716,148.05,147.94,43.36198351]
[1642377049919,42.87255716,148.05,147.94,43.36198351]
[1642377051317,42.62255716,148.05,147.94,43.36198351]
[1642377053221,42.62255716,148.05,147.95,9.78]
[1642377053422,42.62255716,148.05,147.95,10.03]
[1642377054221,42.62255716,148.05,147.95,9.78]
[1642377055723,42.62255716,148.05,147.95,10.03]
[1642377056322,54.46133304,148.05,147.95,9.78]
[1642377056923,52.76055716,148.05,147.95,9.78]
[1642377057327,51.76055716,148.05,147.95,9.78]
[1642377057522,52.01055716,148.05,147.95,9.78]
[1642377057925,52.01055716,148.05,147.95,10.03]
[1642377059055,52.01055716,148.05,147.95,16.03]
[1642377059225,52.01055716,148.05,147.95,10.03]
[1642377061027,41.87255716,148.05,147.95,10.03]
[1642377061427,41.87255716,148.05,147.95,16.03]
[1642377061829,52.01065716,148.05,147.95,16.03]
[1642377062033,53.71143304,148.05,147.95,9.78]
[1642377062229,67.6,148.04,147.9,33.6342]
[1642377062429,67.6,148.04,147.9,33.8842]
[1642377062630,1.70077588,148.03,147.9,33.8842]
[1642377063032,36.11721194,148.02,147.91,37.81457306]
[1642377063429,36.11721194,148.02,147.92,9.78]
[1642377063832,9.78,148.06,147.92,10.03]
[1642377064030,9.78,148.06,147.93,22.9387]
[1642377064433,9.78,148.06,147.93,23.1887]
[1642377064835,10.1386,148.04,147.93,23.1887]
[1642377065737,10.1386,148.04,147.94,39.39046937]
[1642377065934,10.1386,148.04,147.94,39.64046937]
[1642377066136,10.3886,148.04,147.94,39.64046937]
[1642377068943,10.3886,148.04,147.94,0.25]
[1642377069346,10.3886,148.04,147.93,23.1887]
[1642377069545,10.3886,148.04,147.93,32.9687]
[1642377069944,10.3886,148.04,147.93,70.79342101]
[1642377072446,10.3886,148.04,147.93,76.79342101]
[1642377075477,3.84614654,148.03,147.93,76.79342101]
[1642377075676,28.42669484,148.02,147.93,76.79342101]
[1642377080980,28.42669484,148.02,147.93,77.79168952]
[1642377081183,28.42669484,148.02,147.93,71.79168952]
[1642377082082,28.42669484,148.02,147.93,33.96696851]
[1642377083283,28.42669484,148.02,147.93,32.9687]
[1642377083485,28.42669484,148.02,147.93,32.7187]
[1642377083687,96.02669484,148.02,147.9,23.8542]
[1642377083985,1.70077588,148.01,147.9,23.8542]
[1642377084185,1.70077588,148.01,147.9,67.94334457]
[1642377084786,1.70077588,148.01,147.9,68.19334457]
[1642377085185,3.85106957,148.0,147.9,68.19334457]
[1642377085385,38.08602805,147.99,147.9,68.19334457]
[1642377087587,38.08602805,147.99,147.9,24.1042]
[1642377088186,38.33602805,147.99,147.9,24.1042]
[1642377092392,48.22792805,147.99,147.9,24.1042]
[1642377093696,48.22792805,147.99,147.91,23.2239]
[1642377093897,48.22792805,147.99,147.91,23.4739]
[1642377096297,48.22792805,147.99,147.92,42.10940328]
[1642377096798,48.22792805,147.99,147.92,42.35940328]
[1642377097297,48.22792805,147.99,147.92,0.25]
[1642377097899,48.22792805,147.99,147.91,23.4739]
[1642377098301,48.22792805,147.99,147.91,29.4739]
[1642377101305,48.22792805,147.99,147.91,29.2239]
[1642377102708,48.22792805,147.99,147.91,29.4739]
[1642377103810,38.08602805,147.99,147.91,29.4739]
[1642377107844,10.1393,148.03,147.91,29.4739]
[1642377108840,52.81082526,148.02,147.91,29.4739]
[1642377109041,62.95062526,148.02,147.91,29.4739]
[1642377109641,3.84973738,148.01,147.91,29.4739]
[1642377110443,13.99043738,148.01,147.91,29.4739]
[1642377110944,14.24043738,148.01,147.91,29.4739]
[1642377111645,10.3907,148.01,147.91,29.4739]
[1642377111847,10.3907,148.01,147.91,23.2239]
[1642377112346,77.9907,148.01,147.91,23.2239]
[1642377112547,10.1427,147.98,147.88,9.78]
[1642377112748,10.1427,147.98,147.89,43.11471496]
[1642377113447,10.1427,147.98,147.9,22.7859]
[1642377113848,10.1427,147.98,147.9,23.0359]
[1642377114451,28.77868122,147.99,147.9,23.0359]
[1642377122862,38.92068122,147.99,147.9,22.7859]
[1642377123161,38.92068122,147.99,147.86,23.1073]
[1642377123362,55.99668122,147.99,147.86,29.1073]
[1642377123761,55.99668122,147.99,147.87,35.31002569]
[1642377123962,56.24668122,147.99,147.87,58.13012569]
[1642377124163,10.1434,147.97,147.87,58.13012569]
[1642377124963,3.85483983,147.98,147.87,58.13012569]
[1642377125166,0.25,147.99,147.87,58.13012569]
[1642377125374,9.78,148.01,147.87,59.37554248]
[1642377125765,36.4198418,148.0,147.87,59.37554248]
[1642377126366,36.4198418,148.0,147.87,58.38012569]
[1642377126595,10.1417,147.99,147.87,58.38012569]
[1642377127394,39.99863685,147.97,147.87,58.38012569]
[1642377128595,10.1417,147.99,147.87,59.37554248]
[1642377129195,10.3917,147.99,147.87,59.37554248]
[1642377129500,48.27119396,147.98,147.87,59.37554248]
[1642377130299,58.41379396,147.98,147.87,58.38012569]
[1642377131899,58.41379396,147.98,147.87,59.37554248]
[1642377132300,10.1426,147.98,147.87,59.37554248]
[1642377136501,54.54782606,148.0,147.87,126.97554248]
[1642377136704,10.1414,148.0,147.88,9.78]
[1642377136902,49.44242902,148.03,147.88,10.03]
[1642377137102,49.44242902,148.03,147.89,23.0871]
[1642377137302,3.8510051,147.99,147.89,23.0871]
[1642377137602,3.8510051,147.99,147.9,37.13569139]
[1642377137801,3.8510051,147.99,147.9,38.13110818]
[1642377138003,3.8510051,147.99,147.9,48.16110818]
[1642377138215,3.8510051,148.01,147.91,24.5716]
[1642377138407,3.8510051,148.01,147.91,24.8216]
[1642377138803,3.8510051,148.02,147.91,24.8216]
[1642377139608,7.70160366,148.02,147.91,24.8216]
[1642377139805,7.70160366,148.02,147.91,24.5716]
[1642377140005,7.70160366,148.02,147.93,67.6]
[1642377140206,7.70160366,148.02,147.93,74.143]
[1642377140409,7.70160366,148.02,147.94,0.99541679]
[1642377140804,15.90962902,148.06,147.95,35.39434122]
[1642377140805,7.70160366,148.03,147.95,35.39434122]
[1642377141204,7.70160366,148.03,147.95,35.64434122]
[1642377141806,36.40472288,148.03,147.95,35.64434122]
[1642377142205,36.40472288,148.03,147.96,22.6039]
[1642377142409,36.40472288,148.03,147.96,22.8539]
[1642377142808,36.40472288,148.03,147.96,0.25]
[1642377143008,36.65472288,148.03,147.92,9.78]
[1642377143609,36.65472288,148.03,147.94,48.1995365]
[1642377144209,40.50572798,148.03,147.94,48.1995365]
[1642377144411,50.64492798,148.03,147.94,48.4495365]
[1642377146010,46.79392288,148.03,147.94,48.4495365]
[1642377147212,46.79392288,148.03,147.94,0.25]
[1642377147411,46.79392288,148.03,147.93,24.5276]
[1642377148415,50.64492798,148.03,147.93,24.5276]
[1642377155646,4.1010051,148.03,147.93,24.5276]
[1642377155845,3.8510051,148.03,147.93,24.5276]
[1642377156245,3.8510051,148.03,147.93,41.2826]
[1642377156447,3.8510051,148.03,147.93,51.419]
[1642377156650,3.8510051,148.03,147.93,57.419]
[1642377157551,38.86004036,148.05,147.93,57.419]
[1642377158653,35.00903526,148.05,147.93,57.419]
[1642377158854,35.00903526,148.05,147.95,40.32771174]
[1642377159050,35.00903526,148.05,147.96,22.7469]
[1642377159451,35.00903526,148.05,147.96,22.9969]
[1642377160465,36.70981114,148.05,147.96,22.9969]
[1642377160861,35.00903526,148.05,147.96,22.9969]
[1642377161061,35.00903526,148.05,147.96,22.7469]
[1642377161462,45.14643526,148.05,147.96,22.7469]
[1642377161662,7.69552452,148.04,147.96,22.7469]
[1642377162062,7.69552452,148.04,147.93,54.79930433]
[1642377162263,7.69552452,148.04,147.94,24.8479]
[1642377162462,7.69552452,148.04,147.94,25.0979]
[1642377163065,7.69552452,148.04,147.94,24.8479]
[1642377163565,17.83402452,148.04,147.94,24.8479]
[1642377164098,18.08402452,148.04,147.94,24.8479]
[1642377164468,3.84451942,148.03,147.94,25.0979]
[1642377164671,42.73073384,148.02,147.94,25.0979]
[1642377165472,42.73073384,148.02,147.94,24.8479]
[1642377166669,1.92381003,148.0,147.94,25.0979]
[1642377166870,35.00903526,147.99,147.94,25.0979]
[1642377167470,36.93284529,147.99,147.94,24.8479]
[1642377167670,1.92381003,147.99,147.94,24.8479]
[1642377168669,47.05528935,147.98,147.94,24.8479]
[1642377168870,47.05528935,147.98,147.94,25.0979]
[1642377169675,47.05528935,147.98,147.94,0.25]
[1642377169874,48.97909938,147.98,147.91,23.5552]
[1642377174076,59.12149938,147.98,147.91,23.3052]
[1642377174978,1.92381003,147.97,147.9,22.9482]
[1642377175376,1.92381003,147.97,147.9,23.1982]
[1642377175577,12.06681003,147.97,147.9,23.1982]
[1642377178479,12.06681003,147.97,147.91,35.91963437]
[1642377178881,12.06681003,147.97,147.91,36.16963437]
[1642377181584,1.92381003,147.97,147.91,36.16963437]
[1642377181988,48.97909938,147.98,147.91,0.25]
[1642377182387,48.97909938,147.98,147.9,23.1982]
[1642377182984,48.97909938,147.98,147.9,63.86128691]
[1642377183584,48.97909938,147.98,147.9,23.1982]
[1642377185184,48.97909938,147.98,147.91,48.94396604]
[1642377185387,48.97909938,147.98,147.91,49.19396604]
[1642377188419,48.97909938,147.98,147.91,0.25]
[1642377188818,48.97909938,147.98,147.9,22.9482]
[1642377188819,48.97909938,147.98,147.9,23.1982]
[1642377189420,48.97909938,147.98,147.9,72.4885847]
[1642377189421,1.92381003,147.97,147.9,72.4885847]
[1642377190321,48.97909938,147.98,147.9,72.4885847]
[1642377191525,48.97909938,147.98,147.9,23.1982]
[1642377192125,1.92381003,147.97,147.9,23.1982]
[1642377195229,1.92381003,147.97,147.91,47.87262642]
[1642377195429,1.92381003,147.97,147.91,48.12262642]
[1642377197130,1.92381003,147.97,147.91,0.25]
[1642377197328,1.92381003,147.97,147.9,23.1982]
[1642377198728,1.92381003,147.97,147.9,65.86125262]
[1642377201133,1.92381003,147.97,147.9,23.1982]
[1642377201935,1.92381003,147.97,147.9,22.9482]
[1642377203332,1.92381003,147.95,147.9,23.1982]
[1642377203532,30.68447975,147.94,147.9,23.1982]
[1642377210134,1.92381003,147.95,147.9,23.1982]
[1642377211137,1.92381003,147.96,147.91,40.71879851]
[1642377211336,1.92381003,147.96,147.91,40.96879851]
[1642377213239,1.92381003,147.97,147.91,40.96879851]
[1642377214238,1.92381003,147.97,147.91,0.25]
[1642377214438,1.92381003,147.97,147.9,23.1982]
[1642377215137,1.92381003,147.97,147.9,71.96813976]
[1642377216439,1.92381003,147.97,147.9,23.1982]
[1642377227085,47.45648357,147.98,147.9,23.1982]
[1642377227686,57.59868357,147.98,147.9,23.1982]
[1642377228388,57.59868357,147.98,147.9,22.9482]
[1642377229390,12.06771003,147.96,147.9,22.9482]
[1642377229790,12.31771003,147.96,147.9,22.9482]
[1642377230793,12.31771003,147.96,147.86,1.88173381]
[1642377230992,12.31771003,147.96,147.86,25.35033381]
[1642377230993,20.99171003,147.96,147.86,25.35033381]
[1642377231196,22.69248591,147.96,147.86,25.35033381]
[1642377231393,32.47248591,147.96,147.86,25.35033381]
[1642377232494,32.47248591,147.96,147.86,25.60033381]
[1642377232694,1.92381003,147.94,147.86,23.7186]
[1642377232894,10.146,147.92,147.86,23.7186]
[1642377235896,10.396,147.92,147.86,23.7186]
[1642377248136,32.20709556,147.93,147.86,23.7186]
[1642377250839,12.06881003,147.94,147.87,49.04896936]
[1642377251042,1.92381003,147.94,147.87,49.04896936]
[1642377251240,1.92381003,147.94,147.87,49.29896936]
[1642377251839,1.92381003,147.94,147.88,23.3509]
[1642377252240,12.06741003,147.96,147.88,23.6009]
[1642377254040,1.92381003,147.96,147.88,23.6009]
[1642377254442,1.92381003,147.96,147.88,33.3809]
[1642377255042,38.20898548,147.96,147.88,33.3809]
[1642377255643,36.28517545,147.96,147.88,33.3809]
[1642377256449,36.28517545,147.96,147.88,43.5206]
[1642377257645,1.92381003,147.97,147.88,43.5206]
[1642377257944,1.92381003,147.97,147.88,111.1206]
[1642377258346,1.92381003,147.98,147.88,111.1206]
[1642377258746,39.93870197,147.97,147.88,111.1206]
[1642377261249,1.92381003,147.98,147.88,111.1206]
[1642377262247,46.53556501,147.97,147.88,111.1206]
[1642377262649,1.92381003,147.98,147.88,111.1206]
[1642377262847,1.92381003,147.99,147.88,111.1206]
[1642377263752,37.35438201,147.98,147.88,111.1206]
[1642377264149,37.35438201,147.98,147.88,33.1309]
[1642377265350,39.27819204,147.98,147.88,33.3809]
[1642377267055,1.92381003,147.97,147.88,33.3809]
[1642377268856,12.06661003,147.97,147.88,33.3809]
[1642377270558,12.06661003,147.97,147.88,33.1309]
[1642377271958,12.06661003,147.97,147.88,23.3509]
[1642377272662,1.92381003,147.96,147.88,23.3509]
[1642377272862,12.06741003,147.96,147.88,23.3509]
[1642377273960,12.06741003,147.96,147.88,23.6009]
[1642377274261,1.92381003,147.95,147.88,23.6009]
[1642377275664,12.06741003,147.96,147.88,23.6009]
[1642377278072,12.31741003,147.96,147.88,23.6009]
[1642377278269,1.92381003,147.95,147.88,23.6009]
[1642377279775,17.75881003,147.95,147.88,23.3509]
[1642377280393,17.75881003,147.95,147.85,24.1038]
[1642377280597,85.35881003,147.95,147.85,24.1038]
[1642377280795,1.92381003,147.94,147.85,24.1038]
[1642377281096,10.1464,147.92,147.85,24.3538]
[1642377281295,10.1464,147.92,147.86,24.4767]
[1642377281695,10.1464,147.92,147.86,24.7267]
[1642377288106,10.1464,147.92,147.8,36.29553381]
[1642377288313,10.1464,147.92,147.8,1.88173381]
[1642377288508,11.48077588,147.91,147.8,1.88173381]
[1642377288708,10.1507,147.88,147.8,1.88173381]
[1642377288909,16.8677,147.88,147.8,1.88173381]
[1642377289108,37.35438201,147.87,147.8,1.88173381]
[1642377289307,37.35438201,147.87,147.77,41.94516729]
[1642377289507,37.35438201,147.87,147.78,22.7959]
[1642377289910,37.35438201,147.87,147.78,23.0459]
[1642377290407,10.1507,147.85,147.78,23.0459]
[1642377290609,16.9117,147.85,147.78,23.0459]
[1642377292312,16.9117,147.85,147.78,22.7959]
[1642377292510,16.9117,147.85,147.74,25.35833381]
[1642377293411,16.9117,147.85,147.75,24.4317]
[1642377295211,16.9117,147.85,147.75,24.6817]
[1642377295411,84.5117,147.85,147.75,24.6817]
[1642377295612,16.9117,147.85,147.75,24.6817]
[1642377296013,84.5117,147.85,147.75,24.6817]
[1642377296312,10.1553,147.81,147.71,1.88173381]
[1642377296512,86.0653,147.81,147.71,1.88173381]
[1642377297121,36.81921086,147.8,147.7,45.00826084]
[1642377297415,10.1565,147.77,147.7,45.00826084]
[1642377297815,36.81921086,147.8,147.7,45.00826084]
[1642377298216,33.8507,147.82,147.7,45.25826084]
[1642377298416,33.8507,147.82,147.71,24.8828]
[1642377298616,10.1551,147.79,147.71,24.8828]
[1642377298816,10.1551,147.79,147.71,25.1328]
[1642377299218,9.78,147.84,147.71,25.1328]
[1642377300421,10.1523,147.83,147.71,25.1328]
[1642377301016,10.1523,147.83,147.71,34.9128]
[1642377305526,10.1509,147.85,147.71,112.6642]
[1642377305743,1.23977436,147.86,147.71,213.76073416]
[1642377305925,1.23977436,147.86,147.71,224.08218706]
[1642377307153,1.23977436,147.86,147.75,10.1486]
[1642377307353,1.23977436,147.86,147.75,10.3986]
[1642377307555,1.23977436,147.86,147.76,46.40769156]
[1642377307953,1.23977436,147.86,147.76,46.65769156]
[1642377308554,1.23977436,147.86,147.77,23.387]
[1642377308952,1.23977436,147.86,147.77,23.637]
[1642377311857,1.23977436,147.86,147.77,91.237]
[1642377312164,1.23977436,147.86,147.78,9.78]